[Event "*** SCC Grand Prix: Titled Tuesday Blitz"]
[Site "Chess.com"]
[Date "2020.10.13"]
[Round "8"]
[White "German_Bazeev"]
[Black "Yashasd1995"]
[Result "0-1"]
[WhiteElo "2703"]
[BlackElo "2612"]
[TimeControl "180+1"]
[EndTime "11:34:02 PDT"]
[Termination "Yashasd1995 won on time"]

1. d4 {[%clk 0:03:00.9]} 1... Nf6 {[%clk 0:02:58.8]} 2. Nf3 {[%clk 0:03:01.4]}
2... e6 {[%clk 0:02:57.8]} 3. c4 {[%clk 0:03:01.9]} 3... b6 {[%clk 0:02:54.9]}
4. Nc3 {[%clk 0:03:01.5]} 4... Bb4 {[%clk 0:02:53.7]} 5. Bg5 {[%clk 0:03:01.4]}
5... Bb7 {[%clk 0:02:53]} 6. Nd2 {[%clk 0:02:56.6]} 6... Bxc3 {[%clk 0:02:52.3]}
7. bxc3 {[%clk 0:02:56.3]} 7... h6 {[%clk 0:02:52.7]} 8. Bh4 {[%clk 0:02:56.5]}
8... d6 {[%clk 0:02:52.7]} 9. f3 {[%clk 0:02:56.7]} 9... Nbd7 {[%clk 0:02:47.7]}
10. e4 {[%clk 0:02:56.1]} 10... Qe7 {[%clk 0:02:32.1]} 11. Be2 {[%clk
0:02:55.8]} 11... g5 {[%clk 0:02:25.4]} 12. Bf2 {[%clk 0:02:55.2]} 12... Nh5
{[%clk 0:02:25.1]} 13. Nf1 {[%clk 0:02:53.4]} 13... Nf4 {[%clk 0:02:20.9]} 14.
Ne3 {[%clk 0:02:53.3]} 14... c5 {[%clk 0:02:18.9]} 15. Bf1 {[%clk 0:02:52.6]}
15... h5 {[%clk 0:02:10.4]} 16. g3 {[%clk 0:02:52.1]} 16... Ng6 {[%clk
0:02:10.7]} 17. Bg2 {[%clk 0:02:46.3]} 17... Rc8 {[%clk 0:02:08.6]} 18. Qd2
{[%clk 0:02:36.1]} 18... h4 {[%clk 0:01:59.3]} 19. Rd1 {[%clk 0:02:35.4]} 19...
h3 {[%clk 0:01:57.4]} 20. Bf1 {[%clk 0:02:34.9]} 20... f5 {[%clk 0:01:54.3]} 21.
Bd3 {[%clk 0:02:28.7]} 21... fxe4 {[%clk 0:01:44.5]} 22. fxe4 {[%clk 0:02:28.1]}
22... Nf6 {[%clk 0:01:44.4]} 23. e5 {[%clk 0:02:23.3]} 23... Ne4 {[%clk
0:01:40]} 24. Qc2 {[%clk 0:02:22]} 24... Nxf2 {[%clk 0:01:04.3]} 25. Bxg6+
{[%clk 0:02:19.9]} 25... Kd8 {[%clk 0:01:01.9]} 26. exd6 {[%clk 0:01:46.5]}
26... Qg7 {[%clk 0:00:53.1]} 27. O-O {[%clk 0:01:36.6]} 27... Nxd1 {[%clk
0:00:50.8]} 28. Rxd1 {[%clk 0:01:25.8]} 28... cxd4 {[%clk 0:00:47.5]} 29. cxd4
{[%clk 0:01:22.5]} 29... Rf8 {[%clk 0:00:41.6]} 30. Be4 {[%clk 0:01:20.7]} 30...
Bxe4 {[%clk 0:00:22.2]} 31. Qxe4 {[%clk 0:01:21.6]} 31... Qf7 {[%clk 0:00:21.8]}
32. Rf1 {[%clk 0:01:16]} 32... Qg7 {[%clk 0:00:22]} 33. Rxf8+ {[%clk 0:00:59.4]}
33... Qxf8 {[%clk 0:00:22.9]} 34. Qxe6 {[%clk 0:00:35.5]} 34... Rc6 {[%clk
0:00:22.2]} 35. Nf5 {[%clk 0:00:32.9]} 35... Qe8 {[%clk 0:00:15.3]} 36. Qf6+
{[%clk 0:00:23.5]} 36... Kd7 {[%clk 0:00:15.5]} 37. Qg7+ {[%clk 0:00:22.8]}
37... Kd8 {[%clk 0:00:13.6]} 38. Qxg5+ {[%clk 0:00:22.2]} 38... Kd7 {[%clk
0:00:13.3]} 39. Qg7+ {[%clk 0:00:20.7]} 39... Kd8 {[%clk 0:00:13.4]} 40. Qg5+
{[%clk 0:00:13.4]} 40... Kd7 {[%clk 0:00:13.2]} 41. Ne7 {[%clk 0:00:08.8]} 41...
Rxd6 {[%clk 0:00:12.4]} 42. c5 {[%clk 0:00:04.4]} 42... bxc5 {[%clk 0:00:10.7]}
43. dxc5 {[%clk 0:00:03.6]} 43... Rd1+ {[%clk 0:00:10.8]} 0-1

[Event "*** SCC Grand Prix: Titled Tuesday Blitz"]
[Site "Chess.com"]
[Date "2020.10.13"]
[Round "8"]
[White "bocah_sakit"]
[Black "WildBizon"]
[Result "0-1"]
[WhiteElo "2852"]
[BlackElo "2646"]
[TimeControl "180+1"]
[EndTime "11:34:04 PDT"]
[Termination "WildBizon won by resignation"]

1. e4 {[%clk 0:03:00.9]} 1... c5 {[%clk 0:02:59.9]} 2. Nf3 {[%clk 0:03:00.8]}
2... Nc6 {[%clk 0:03:00.1]} 3. Bb5 {[%clk 0:03:00.1]} 3... g6 {[%clk 0:03:00.3]}
4. O-O {[%clk 0:03:00]} 4... Bg7 {[%clk 0:03:00]} 5. Re1 {[%clk 0:03:00.6]} 5...
Nf6 {[%clk 0:02:58.5]} 6. e5 {[%clk 0:03:00.5]} 6... Nd5 {[%clk 0:02:58.6]} 7.
Bxc6 {[%clk 0:03:01.1]} 7... dxc6 {[%clk 0:02:58.1]} 8. d3 {[%clk 0:03:00.7]}
8... h6 {[%clk 0:02:57]} 9. Nbd2 {[%clk 0:03:01.3]} 9... g5 {[%clk 0:02:56.8]}
10. Nf1 {[%clk 0:02:56.9]} 10... Bg4 {[%clk 0:02:45.6]} 11. Ng3 {[%clk
0:02:54.7]} 11... e6 {[%clk 0:02:32.8]} 12. h3 {[%clk 0:02:53.6]} 12... Bxf3
{[%clk 0:02:24.8]} 13. Qxf3 {[%clk 0:02:54.5]} 13... Qc7 {[%clk 0:02:25.1]} 14.
Qe2 {[%clk 0:02:42.9]} 14... Rg8 {[%clk 0:02:22.8]} 15. Nh5 {[%clk 0:02:36.7]}
15... Bh8 {[%clk 0:02:22.4]} 16. c4 {[%clk 0:02:37.3]} 16... Ne7 {[%clk
0:02:20.3]} 17. a3 {[%clk 0:02:13.6]} 17... Ng6 {[%clk 0:02:14.3]} 18. Nf6+
{[%clk 0:02:01.7]} 18... Bxf6 {[%clk 0:02:13.7]} 19. exf6 {[%clk 0:02:02.6]}
19... O-O-O {[%clk 0:02:12.4]} 20. Be3 {[%clk 0:01:38.8]} 20... Nf4 {[%clk
0:02:10.1]} 21. Qc2 {[%clk 0:01:37.4]} 21... g4 {[%clk 0:02:00.2]} 22. h4 {[%clk
0:01:26.5]} 22... Nxd3 {[%clk 0:01:51.8]} 23. Red1 {[%clk 0:01:24.4]} 23... Ne5
{[%clk 0:01:51.3]} 24. Rxd8+ {[%clk 0:01:14.3]} 24... Qxd8 {[%clk 0:01:50.4]}
25. Bxc5 {[%clk 0:00:52.7]} 25... Qxf6 {[%clk 0:01:49.4]} 26. Qe4 {[%clk
0:00:49.2]} 26... Nf3+ {[%clk 0:01:07]} 27. gxf3 {[%clk 0:00:45.7]} 27... Qxh4
{[%clk 0:01:07.1]} 28. f4 {[%clk 0:00:33.4]} 28... g3 {[%clk 0:01:07.5]} 29.
fxg3 {[%clk 0:00:11.8]} 29... Rxg3+ {[%clk 0:01:02.4]} 30. Kf1 {[%clk
0:00:12.3]} 30... Qh3+ {[%clk 0:00:59.9]} 31. Ke2 {[%clk 0:00:11.6]} 31... Qg4+
{[%clk 0:00:55.2]} 32. Kf2 {[%clk 0:00:11]} 32... Qh4 {[%clk 0:00:52.8]} 33. Ke2
{[%clk 0:00:09.8]} 33... Qh5+ {[%clk 0:00:50.8]} 34. Kd2 {[%clk 0:00:08.7]}
34... Qxc5 {[%clk 0:00:49.6]} 35. Re1 {[%clk 0:00:07.2]} 35... h5 {[%clk
0:00:42.2]} 36. Kc1 {[%clk 0:00:06.9]} 36... h4 {[%clk 0:00:41.5]} 37. Kb1
{[%clk 0:00:06.1]} 37... h3 {[%clk 0:00:40.8]} 38. Rd1 {[%clk 0:00:06.1]} 38...
h2 {[%clk 0:00:38.8]} 39. Qh7 {[%clk 0:00:06.3]} 39... Qf5+ {[%clk 0:00:38.4]}
40. Qxf5 {[%clk 0:00:03.7]} 40... exf5 {[%clk 0:00:39.3]} 41. Kc2 {[%clk
0:00:03.2]} 41... Rg1 {[%clk 0:00:38.8]} 42. Rd2 {[%clk 0:00:02.2]} 42... h1=Q
{[%clk 0:00:38.8]} 43. Kc3 {[%clk 0:00:01.5]} 43... Rc1+ {[%clk 0:00:37.4]} 44.
Kb3 {[%clk 0:00:01.7]} 44... Qe4 {[%clk 0:00:35.6]} 45. Ka2 {[%clk 0:00:02.1]}
45... Qxc4+ {[%clk 0:00:35.2]} 46. b3 {[%clk 0:00:02.6]} 46... Rc2+ {[%clk
0:00:34.4]} 47. Rxc2 {[%clk 0:00:02.4]} 47... Qxc2+ {[%clk 0:00:33.9]} 48. Ka1
{[%clk 0:00:03.3]} 48... Kd7 {[%clk 0:00:33.5]} 49. a4 {[%clk 0:00:04.2]} 49...
Qxb3 {[%clk 0:00:33.2]} 50. a5 {[%clk 0:00:05.1]} 50... Qb4 {[%clk 0:00:33.6]}
51. a6 {[%clk 0:00:06]} 51... bxa6 {[%clk 0:00:33.7]} 52. Ka2 {[%clk 0:00:06.9]}
52... Kd6 {[%clk 0:00:33.9]} 53. Ka1 {[%clk 0:00:07.8]} 53... Kd5 {[%clk
0:00:34.4]} 0-1

[Event "*** SCC Grand Prix: Titled Tuesday Blitz"]
[Site "Chess.com"]
[Date "2020.10.13"]
[Round "8"]
[White "Cocaino74"]
[Black "chenxiaoyuer"]
[Result "1-0"]
[WhiteElo "2402"]
[BlackElo "2519"]
[TimeControl "180+1"]
[EndTime "11:34:05 PDT"]
[Termination "Cocaino74 won by checkmate"]

1. e4 {[%clk 0:03:00.4]} 1... c5 {[%clk 0:02:59.4]} 2. Nf3 {[%clk 0:03:00.1]}
2... d6 {[%clk 0:02:59.8]} 3. Bb5+ {[%clk 0:03:00.3]} 3... Nd7 {[%clk
0:02:57.7]} 4. O-O {[%clk 0:03:00]} 4... Nf6 {[%clk 0:02:57.6]} 5. Bd3 {[%clk
0:02:53.1]} 5... e6 {[%clk 0:02:39.5]} 6. c3 {[%clk 0:02:52.7]} 6... Be7 {[%clk
0:02:39.5]} 7. Bc2 {[%clk 0:02:52.8]} 7... O-O {[%clk 0:02:40.2]} 8. d4 {[%clk
0:02:53.4]} 8... cxd4 {[%clk 0:02:37.9]} 9. cxd4 {[%clk 0:02:54.3]} 9... d5
{[%clk 0:02:33.4]} 10. e5 {[%clk 0:02:35.4]} 10... Ne4 {[%clk 0:02:32.4]} 11.
Nc3 {[%clk 0:02:22.1]} 11... Nxc3 {[%clk 0:02:28.8]} 12. bxc3 {[%clk 0:02:22.5]}
12... f5 {[%clk 0:02:17.7]} 13. exf6 {[%clk 0:02:20]} 13... Nxf6 {[%clk
0:02:08.5]} 14. Ne5 {[%clk 0:01:54.9]} 14... Bd6 {[%clk 0:01:41.9]} 15. Bg5
{[%clk 0:01:45.5]} 15... Qe8 {[%clk 0:01:31.3]} 16. f4 {[%clk 0:01:31.1]} 16...
Bd7 {[%clk 0:01:07.1]} 17. Qd3 {[%clk 0:01:22.5]} 17... Bb5 {[%clk 0:00:32.8]}
18. Qh3 {[%clk 0:01:17.4]} 18... Ne4 {[%clk 0:00:25.4]} 19. Rfe1 {[%clk
0:01:11.1]} 19... Bxe5 {[%clk 0:00:20.6]} 20. Rxe4 {[%clk 0:00:37.5]} 20... dxe4
{[%clk 0:00:16.9]} 21. Bxe4 {[%clk 0:00:38.1]} 21... g6 {[%clk 0:00:14.8]} 22.
fxe5 {[%clk 0:00:29.8]} 22... Bc6 {[%clk 0:00:12.1]} 23. Bd3 {[%clk 0:00:20.4]}
23... Qd7 {[%clk 0:00:10.5]} 24. Bf6 {[%clk 0:00:17.8]} 24... Bd5 {[%clk
0:00:10.6]} 25. Bxg6 {[%clk 0:00:17.7]} 25... hxg6 {[%clk 0:00:07.8]} 26. Qh8+
{[%clk 0:00:16.1]} 26... Kf7 {[%clk 0:00:08]} 27. Qh7+ {[%clk 0:00:16]} 27...
Ke8 {[%clk 0:00:07.7]} 28. Qxg6+ {[%clk 0:00:15.7]} 28... Qf7 {[%clk 0:00:07.9]}
29. Qb1 {[%clk 0:00:10.2]} 29... Bc6 {[%clk 0:00:07.7]} 30. Qb4 {[%clk 0:00:10]}
30... Rg8 {[%clk 0:00:07.4]} 31. g3 {[%clk 0:00:09.9]} 31... Qd7 {[%clk
0:00:06.6]} 32. d5 {[%clk 0:00:08.9]} 32... exd5 {[%clk 0:00:03.7]} 33. Re1
{[%clk 0:00:09.3]} 33... Qe6 {[%clk 0:00:03.4]} 34. Qh4 {[%clk 0:00:05.7]} 34...
Kd7 {[%clk 0:00:01.7]} 35. Qh7+ {[%clk 0:00:05.4]} 35... Ke8 {[%clk 0:00:02.2]}
36. Rb1 {[%clk 0:00:02.9]} 36... Rf8 {[%clk 0:00:02.1]} 37. Rxb7 {[%clk
0:00:02.3]} 37... Bxb7 {[%clk 0:00:02]} 38. Qxb7 {[%clk 0:00:03.2]} 38... Rc8
{[%clk 0:00:01.3]} 39. Qb5+ {[%clk 0:00:02.7]} 39... Kf7 {[%clk 0:00:01.3]} 40.
Qb7+ {[%clk 0:00:02.7]} 40... Kg6 {[%clk 0:00:01.5]} 41. Qg7+ {[%clk 0:00:03.1]}
41... Kf5 {[%clk 0:00:01.9]} 42. Qh7+ {[%clk 0:00:03.6]} 42... Kg4 {[%clk
0:00:02.4]} 43. h3+ {[%clk 0:00:02.2]} 43... Kf3 {[%clk 0:00:02.8]} 44. Qd3#
{[%clk 0:00:02.7]} 1-0

[Event "*** SCC Grand Prix: Titled Tuesday Blitz"]
[Site "Chess.com"]
[Date "2020.10.13"]
[Round "8"]
[White "Gloomy_Wanderer"]
[Black "Guenplen"]
[Result "1/2-1/2"]
[WhiteElo "2777"]
[BlackElo "2866"]
[TimeControl "180+1"]
[EndTime "11:34:06 PDT"]
[Termination "Game drawn by repetition"]

1. d4 {[%clk 0:03:00.9]} 1... d5 {[%clk 0:02:59.9]} 2. c4 {[%clk 0:03:00.8]}
2... e6 {[%clk 0:03:00.3]} 3. Nf3 {[%clk 0:03:00.5]} 3... Nf6 {[%clk 0:03:00.3]}
4. g3 {[%clk 0:03:00.7]} 4... Be7 {[%clk 0:03:00.7]} 5. Bg2 {[%clk 0:03:00.8]}
5... O-O {[%clk 0:03:00.9]} 6. O-O {[%clk 0:03:01.7]} 6... Nbd7 {[%clk
0:03:01.2]} 7. Qc2 {[%clk 0:03:01.2]} 7... c6 {[%clk 0:02:59.5]} 8. Nbd2 {[%clk
0:03:00.4]} 8... b6 {[%clk 0:02:59.7]} 9. e4 {[%clk 0:03:00.7]} 9... dxc4 {[%clk
0:02:59.1]} 10. Nxc4 {[%clk 0:02:46]} 10... Bb7 {[%clk 0:02:58.8]} 11. e5 {[%clk
0:02:35.9]} 11... Nd5 {[%clk 0:02:56.2]} 12. a3 {[%clk 0:02:36.1]} 12... c5
{[%clk 0:02:50.8]} 13. dxc5 {[%clk 0:02:35.5]} 13... Nxc5 {[%clk 0:02:49.6]} 14.
b4 {[%clk 0:02:33.5]} 14... Nd7 {[%clk 0:02:49.7]} 15. Bb2 {[%clk 0:02:30.7]}
15... Rc8 {[%clk 0:02:48.3]} 16. Qb3 {[%clk 0:02:30.9]} 16... Qc7 {[%clk
0:02:38]} 17. Rac1 {[%clk 0:02:28.2]} 17... Qb8 {[%clk 0:02:38]} 18. Rfd1 {[%clk
0:02:24.5]} 18... Rfd8 {[%clk 0:02:34]} 19. Nd4 {[%clk 0:02:20.6]} 19... a6
{[%clk 0:02:16.5]} 20. Nf5 {[%clk 0:01:34.4]} 20... exf5 {[%clk 0:02:15.1]} 21.
Bxd5 {[%clk 0:01:34]} 21... Bxd5 {[%clk 0:02:14.9]} 22. Rxd5 {[%clk 0:01:34.9]}
22... Nf8 {[%clk 0:02:08.4]} 23. Ne3 {[%clk 0:01:26.8]} 23... Rxc1+ {[%clk
0:02:01.5]} 24. Bxc1 {[%clk 0:01:27.7]} 24... Rxd5 {[%clk 0:01:55.4]} 25. Qxd5
{[%clk 0:01:26.3]} 25... Qc8 {[%clk 0:01:54.6]} 26. Bb2 {[%clk 0:01:21.9]} 26...
g6 {[%clk 0:01:45]} 27. Bd4 {[%clk 0:01:16.9]} 27... b5 {[%clk 0:01:35]} 28. Bc5
{[%clk 0:01:05.3]} 28... Bg5 {[%clk 0:01:22.4]} 29. f4 {[%clk 0:01:00.9]} 29...
Bd8 {[%clk 0:01:19.5]} 30. Qd6 {[%clk 0:00:52.9]} 30... Ne6 {[%clk 0:01:15.1]}
31. Nd5 {[%clk 0:00:53]} 31... Kg7 {[%clk 0:01:11.6]} 32. Kf2 {[%clk 0:00:44.1]}
32... a5 {[%clk 0:01:09.7]} 33. Ke3 {[%clk 0:00:38]} 33... axb4 {[%clk
0:01:09.5]} 34. axb4 {[%clk 0:00:38.9]} 34... Qa8 {[%clk 0:01:08.8]} 35. Nf6
{[%clk 0:00:19.7]} 35... Bxf6 {[%clk 0:00:59.4]} 36. exf6+ {[%clk 0:00:20.6]}
36... Kh6 {[%clk 0:01:00]} 37. Qe7 {[%clk 0:00:18.9]} 37... Qa3+ {[%clk
0:00:44.1]} 38. Kf2 {[%clk 0:00:18.4]} 38... Qa2+ {[%clk 0:00:42.2]} 39. Ke3
{[%clk 0:00:18.5]} 39... Qb3+ {[%clk 0:00:41.2]} 40. Kf2 {[%clk 0:00:18.2]}
40... Qc2+ {[%clk 0:00:39.5]} 41. Kg1 {[%clk 0:00:18.5]} 41... Qd1+ {[%clk
0:00:36.6]} 42. Kg2 {[%clk 0:00:18.7]} 42... Qd5+ {[%clk 0:00:33.8]} 43. Kg1
{[%clk 0:00:19]} 43... Kh5 {[%clk 0:00:18.3]} 44. h3 {[%clk 0:00:18.5]} 44...
Qd1+ {[%clk 0:00:17.4]} 45. Kg2 {[%clk 0:00:18.1]} 45... Qe2+ {[%clk 0:00:16.2]}
46. Bf2 {[%clk 0:00:17.4]} 46... Qe4+ {[%clk 0:00:14.6]} 47. Kg1 {[%clk
0:00:17.1]} 47... Qb1+ {[%clk 0:00:13.4]} 48. Kg2 {[%clk 0:00:17.6]} 48... Qe4+
{[%clk 0:00:13.1]} 49. Kg1 {[%clk 0:00:18]} 49... Qb1+ {[%clk 0:00:07.5]} 50.
Kg2 {[%clk 0:00:18.4]} 50... Qe4+ {[%clk 0:00:07.5]} 1/2-1/2

[Event "*** SCC Grand Prix: Titled Tuesday Blitz"]
[Site "Chess.com"]
[Date "2020.10.13"]
[Round "8"]
[White "rasmussvane"]
[Black "TigrVShlyape"]
[Result "0-1"]
[WhiteElo "2903"]
[BlackElo "2864"]
[TimeControl "180+1"]
[EndTime "11:34:07 PDT"]
[Termination "TigrVShlyape won by resignation"]

1. Nf3 {[%clk 0:03:00.9]} 1... Nf6 {[%clk 0:02:58.5]} 2. g3 {[%clk 0:03:00.4]}
2... g6 {[%clk 0:02:57.6]} 3. Bg2 {[%clk 0:03:00.7]} 3... Bg7 {[%clk 0:02:58]}
4. O-O {[%clk 0:03:01.3]} 4... O-O {[%clk 0:02:56.9]} 5. d4 {[%clk 0:03:01.9]}
5... d5 {[%clk 0:02:56.3]} 6. c4 {[%clk 0:03:02]} 6... c6 {[%clk 0:02:56.1]} 7.
Qb3 {[%clk 0:03:02.4]} 7... Qb6 {[%clk 0:02:55.3]} 8. Nc3 {[%clk 0:03:02.8]}
8... Rd8 {[%clk 0:02:54.5]} 9. Bd2 {[%clk 0:03:03.1]} 9... dxc4 {[%clk
0:02:52.2]} 10. Qxc4 {[%clk 0:03:04]} 10... Be6 {[%clk 0:02:45.9]} 11. Qa4
{[%clk 0:03:01.7]} 11... Na6 {[%clk 0:02:44.3]} 12. Qa3 {[%clk 0:02:39.7]} 12...
Qb4 {[%clk 0:02:33.2]} 13. Qxb4 {[%clk 0:02:37.5]} 13... Nxb4 {[%clk 0:02:32.5]}
14. e3 {[%clk 0:02:26.7]} 14... Nbd5 {[%clk 0:02:17.2]} 15. Na4 {[%clk
0:02:13.1]} 15... Ne4 {[%clk 0:02:15.5]} 16. Rfc1 {[%clk 0:02:12.9]} 16... Nxd2
{[%clk 0:02:13.8]} 17. Nxd2 {[%clk 0:02:13.8]} 17... Rab8 {[%clk 0:01:58.6]} 18.
Nc5 {[%clk 0:02:10.9]} 18... Bd7 {[%clk 0:01:56]} 19. Nc4 {[%clk 0:02:07]} 19...
Be8 {[%clk 0:01:52.9]} 20. a3 {[%clk 0:01:56.7]} 20... b6 {[%clk 0:01:36.6]} 21.
Na6 {[%clk 0:01:51.2]} 21... Rbc8 {[%clk 0:01:36.5]} 22. Nb4 {[%clk 0:01:46.4]}
22... Nxb4 {[%clk 0:01:26.5]} 23. axb4 {[%clk 0:01:47.3]} 23... c5 {[%clk
0:01:26.9]} 24. bxc5 {[%clk 0:01:38.1]} 24... bxc5 {[%clk 0:01:27.1]} 25. d5
{[%clk 0:01:38.3]} 25... Rc7 {[%clk 0:01:27.2]} 26. Ra5 {[%clk 0:01:32.1]} 26...
Rb8 {[%clk 0:01:26]} 27. Rca1 {[%clk 0:01:19.9]} 27... Bb5 {[%clk 0:01:22.2]}
28. d6 {[%clk 0:01:20]} 28... exd6 {[%clk 0:01:19.4]} 29. Nxd6 {[%clk
0:01:20.9]} 29... Bd3 {[%clk 0:01:10.9]} 30. Rxa7 {[%clk 0:01:18.6]} 30... Rxa7
{[%clk 0:01:08.9]} 31. Rxa7 {[%clk 0:01:19.5]} 31... Bxb2 {[%clk 0:00:55.8]} 32.
Bd5 {[%clk 0:01:17.2]} 32... Rd8 {[%clk 0:00:48.9]} 33. Bxf7+ {[%clk 0:01:17.1]}
33... Kh8 {[%clk 0:00:47.3]} 34. Nc4 {[%clk 0:01:08.7]} 34... Bc3 {[%clk
0:00:43.8]} 35. Rc7 {[%clk 0:00:59.2]} 35... Be4 {[%clk 0:00:42.3]} 36. f3
{[%clk 0:00:48.1]} 36... Bxf3 {[%clk 0:00:42.2]} 37. Rxc5 {[%clk 0:00:46]} 37...
Kg7 {[%clk 0:00:36.4]} 38. Rc7 {[%clk 0:00:43]} 38... Kf6 {[%clk 0:00:34.6]} 39.
Kf2 {[%clk 0:00:41.7]} 39... Be4 {[%clk 0:00:32.4]} 40. Ke2 {[%clk 0:00:39.9]}
40... Bd3+ {[%clk 0:00:27.7]} 41. Kf3 {[%clk 0:00:39.3]} 41... h5 {[%clk
0:00:26.8]} 42. h3 {[%clk 0:00:37.9]} 42... Bb4 {[%clk 0:00:21.6]} 43. g4 {[%clk
0:00:35.7]} 43... hxg4+ {[%clk 0:00:21.4]} 44. hxg4 {[%clk 0:00:36.6]} 44... Be7
{[%clk 0:00:21.2]} 45. Bxg6 {[%clk 0:00:16.3]} 45... Bxg6 {[%clk 0:00:20.3]} 46.
g5+ {[%clk 0:00:16.5]} 46... Ke6 {[%clk 0:00:19.9]} 47. Rc6+ {[%clk 0:00:16.9]}
47... Kf5 {[%clk 0:00:20.2]} 48. Ne5 {[%clk 0:00:08.3]} 48... Be8 {[%clk
0:00:19.7]} 49. Rc7 {[%clk 0:00:04.3]} 49... Bd6 {[%clk 0:00:20]} 50. Nf7 {[%clk
0:00:04.5]} 50... Bxc7 {[%clk 0:00:19.9]} 51. Nxd8 {[%clk 0:00:05]} 51... Bxd8
{[%clk 0:00:20.5]} 52. g6 {[%clk 0:00:05.9]} 52... Bxg6 {[%clk 0:00:20.3]} 53.
e4+ {[%clk 0:00:06.8]} 53... Ke5 {[%clk 0:00:20.5]} 0-1

[Event "*** SCC Grand Prix: Titled Tuesday Blitz"]
[Site "Chess.com"]
[Date "2020.10.13"]
[Round "8"]
[White "Nikolakis2014"]
[Black "Supernotar"]
[Result "0-1"]
[WhiteElo "2744"]
[BlackElo "2846"]
[TimeControl "180+1"]
[EndTime "11:34:11 PDT"]
[Termination "Supernotar won by resignation"]

1. Nf3 {[%clk 0:03:00.9]} 1... c5 {[%clk 0:02:59.7]} 2. c4 {[%clk 0:03:00.6]}
2... Nc6 {[%clk 0:02:59.3]} 3. Nc3 {[%clk 0:03:00.5]} 3... g6 {[%clk 0:02:58.1]}
4. e3 {[%clk 0:03:00]} 4... Nf6 {[%clk 0:02:57.7]} 5. d4 {[%clk 0:03:00.1]} 5...
cxd4 {[%clk 0:02:57.3]} 6. exd4 {[%clk 0:03:00.2]} 6... d5 {[%clk 0:02:56.8]} 7.
cxd5 {[%clk 0:03:00.4]} 7... Nxd5 {[%clk 0:02:56.3]} 8. Qb3 {[%clk 0:03:00.3]}
8... Nxc3 {[%clk 0:02:56]} 9. Bc4 {[%clk 0:02:58.4]} 9... e6 {[%clk 0:02:55.5]}
10. bxc3 {[%clk 0:02:57.9]} 10... Bg7 {[%clk 0:02:54.2]} 11. Ba3 {[%clk
0:02:52.6]} 11... Bf8 {[%clk 0:02:53.9]} 12. Bc1 {[%clk 0:02:52.4]} 12... Bg7
{[%clk 0:02:53.4]} 13. O-O {[%clk 0:02:42.9]} 13... O-O {[%clk 0:02:53.2]} 14.
Be2 {[%clk 0:02:34.4]} 14... b6 {[%clk 0:02:47.9]} 15. Bg5 {[%clk 0:02:30.8]}
15... Qc7 {[%clk 0:02:44.4]} 16. Rac1 {[%clk 0:02:25]} 16... Bb7 {[%clk
0:02:42.9]} 17. Bh4 {[%clk 0:02:24.2]} 17... Rac8 {[%clk 0:02:40.4]} 18. Bg3
{[%clk 0:02:22.7]} 18... Qe7 {[%clk 0:02:34.9]} 19. Rfe1 {[%clk 0:02:12.6]}
19... Na5 {[%clk 0:02:32.2]} 20. Qb1 {[%clk 0:02:03.5]} 20... Rfd8 {[%clk
0:02:22.6]} 21. Ne5 {[%clk 0:01:57.5]} 21... Nc6 {[%clk 0:02:06.8]} 22. Nc4
{[%clk 0:01:51]} 22... Bf6 {[%clk 0:02:06.9]} 23. h3 {[%clk 0:01:48.2]} 23...
Kg7 {[%clk 0:01:54.6]} 24. a4 {[%clk 0:01:47.6]} 24... Ba8 {[%clk 0:01:33.2]}
25. Bd3 {[%clk 0:01:32.8]} 25... Rd7 {[%clk 0:01:26.6]} 26. Ne3 {[%clk
0:01:20.5]} 26... Kg8 {[%clk 0:01:20.5]} 27. Be4 {[%clk 0:01:13.2]} 27... Bg7
{[%clk 0:01:18.1]} 28. d5 {[%clk 0:01:09.4]} 28... Nd8 {[%clk 0:01:18.2]} 29.
Qb5 {[%clk 0:00:57.2]} 29... Nb7 {[%clk 0:01:13]} 30. dxe6 {[%clk 0:00:53.2]}
30... fxe6 {[%clk 0:01:06.4]} 31. Ng4 {[%clk 0:00:49.9]} 31... Nd6 {[%clk
0:01:04.1]} 32. Bxd6 {[%clk 0:00:48.2]} 32... Rxd6 {[%clk 0:01:03.3]} 33. Bxa8
{[%clk 0:00:47.8]} 33... Rxa8 {[%clk 0:01:01.9]} 34. Re3 {[%clk 0:00:44.8]}
34... Rc8 {[%clk 0:00:59]} 35. Qe2 {[%clk 0:00:40.7]} 35... Qd7 {[%clk
0:00:56.6]} 36. c4 {[%clk 0:00:35.4]} 36... Rd8 {[%clk 0:00:51.6]} 37. Ne5
{[%clk 0:00:27.7]} 37... Bxe5 {[%clk 0:00:45.2]} 38. Rxe5 {[%clk 0:00:27]} 38...
Qxa4 {[%clk 0:00:45.1]} 39. Rxe6 {[%clk 0:00:18.7]} 39... Rd1+ {[%clk
0:00:43.4]} 40. Rxd1 {[%clk 0:00:18.4]} 40... Qxd1+ {[%clk 0:00:40.3]} 41. Qxd1
{[%clk 0:00:18.5]} 41... Rxd1+ {[%clk 0:00:39.9]} 42. Kh2 {[%clk 0:00:19.4]}
42... Kf7 {[%clk 0:00:36]} 43. Rc6 {[%clk 0:00:17.9]} 43... Ke7 {[%clk
0:00:33.7]} 44. c5 {[%clk 0:00:13.1]} 44... Kd7 {[%clk 0:00:31.3]} 45. Rf6
{[%clk 0:00:13]} 45... bxc5 {[%clk 0:00:27.1]} 46. Rf7+ {[%clk 0:00:13.1]} 46...
Kd6 {[%clk 0:00:23]} 47. Rxa7 {[%clk 0:00:13.6]} 47... c4 {[%clk 0:00:20.1]} 48.
Rxh7 {[%clk 0:00:12.8]} 48... c3 {[%clk 0:00:17.8]} 49. Rh8 {[%clk 0:00:12]}
49... c2 {[%clk 0:00:15.9]} 50. Rc8 {[%clk 0:00:11.4]} 50... c1=Q {[%clk
0:00:15.2]} 51. Rxc1 {[%clk 0:00:11.2]} 51... Rxc1 {[%clk 0:00:16.1]} 52. Kg3
{[%clk 0:00:11.7]} 52... Ke6 {[%clk 0:00:16.5]} 53. Kg4 {[%clk 0:00:11.9]} 53...
Rc5 {[%clk 0:00:15.7]} 0-1